fUSD/lending_fUSD_20240521
["ID","MTS","AMOUNT","RATE_DAILY","PERIOD"]
[327661476,1716289848271,-500.0,0.00033094,7]
[327661477,1716289848281,-500.0,0.00033094,7]
[327661478,1716289848291,-500.0,0.00033094,7]
[327661479,1716289848303,-500.0,0.00033094,7]
[327661480,1716289848312,-500.0,0.00033094,7]
[327661481,1716289848323,-500.0,0.00033094,7]
[327661482,1716289848334,-530.48863092,0.00033094,7]
[327661483,1716289848344,-500.0,0.00033094,7]
[327661484,1716289848354,-500.0,0.00033094,7]
[327661485,1716289848465,-500.0,0.00033094,7]
[327661486,1716289848475,-500.0,0.00033094,7]
[327661487,1716289848484,-500.0,0.00033094,7]
[327661488,1716289848494,-427.07164571,0.00033094,7]
[327661489,1716289848504,-500.0,0.00033094,7]
[327661490,1716289848513,-617.16092576,0.00033094,7]
[327661491,1716289848523,-500.0,0.00033094,7]
[327661492,1716289848533,-500.0,0.00033094,7]
[327661493,1716289848543,-500.0,0.00033094,7]
[327661494,1716289848553,-500.0,0.00033094,7]
[327661495,1716289848563,-500.0,0.00033094,7]
[327661496,1716289848572,-500.0,0.00033094,7]
[327661497,1716289848582,-500.0,0.00033094,7]
[327661498,1716289848592,-500.0,0.00033094,7]
[327661499,1716289848602,-500.0,0.00033094,7]
[327661500,1716289848612,-500.0,0.00033094,7]
[327661501,1716289848621,-500.0,0.00033094,7]
[327661502,1716289848631,-527.08659078,0.00033094,7]
[327661503,1716289848641,-500.0,0.00033094,7]
[327661504,1716289848650,-500.0,0.00033094,7]
[327661505,1716289848660,-500.0,0.00033094,7]
[327661506,1716289848670,-500.0,0.00033094,7]
[327661507,1716289848679,-500.0,0.00033094,7]
[327661508,1716289848689,-500.0,0.00033094,7]
[327661509,1716289848699,-500.0,0.00033094,7]
[327661510,1716289848708,-500.0,0.00033094,7]
[327661511,1716289848718,-500.0,0.00033094,7]
[327661512,1716289848729,-500.0,0.00033094,7]
[327661513,1716289848739,-500.0,0.00033094,7]
[327661514,1716289848750,-500.0,0.00033094,7]
[327661515,1716289848760,-500.0,0.00033094,7]
[327661516,1716289848770,-623.1,0.00033094,6]
[327661517,1716289848780,-500.0,0.00033094,7]
[327661518,1716289848791,-500.0,0.00033094,7]
[327661519,1716289848801,-500.0,0.00033094,7]
[327661520,1716289848811,-500.0,0.00033094,7]
[327661521,1716289848821,-500.0,0.00033094,7]
[327661522,1716289848831,-500.0,0.00033094,7]
[327661523,1716289848840,-500.0,0.00033094,7]
[327661524,1716289848853,-500.0,0.00033094,7]
[327661525,1716289848863,-500.0,0.00033094,7]
[327661526,1716289848873,-500.0,0.00033094,7]
[327661527,1716289848882,-500.0,0.00033094,7]
[327661528,1716289848893,-500.0,0.00033094,7]
[327661529,1716289848902,-500.0,0.00033094,7]
[327661530,1716289848912,-500.0,0.00033094,7]
[327661531,1716289848922,-500.0,0.00033094,7]
[327661532,1716289848932,-500.0,0.00033094,7]
[327661533,1716289848941,-500.0,0.00033094,7]
[327661534,1716289848951,-500.0,0.00033094,7]
[327661535,1716289848960,-500.0,0.00033094,7]
[327661536,1716289848970,-299.28116145,0.00033094,6]
[327661537,1716289848979,-500.0,0.00033094,6]
[327661538,1716289848989,-500.0,0.00033094,7]
[327661539,1716289848998,-500.0,0.00033094,7]
[327661540,1716289849007,-500.0,0.00033094,7]
[327661541,1716289849017,-500.0,0.00033094,7]
[327661542,1716289849026,-500.0,0.00033094,7]
[327661543,1716289849036,-500.0,0.00033094,7]
[327661544,1716289849046,-500.0,0.00033094,7]
[327661545,1716289849055,-500.0,0.00033094,7]
[327661546,1716289849065,-621.7415841,0.00033094,7]
[327661547,1716289849075,-500.0,0.00033094,7]
[327661548,1716289849084,-500.0,0.00033094,7]
[327661549,1716289849094,-500.0,0.00033094,7]
[327661550,1716289849104,-500.0,0.00033094,7]
[327661551,1716289849115,-500.0,0.00033094,6]
[327661552,1716289849124,-584.58,0.00033094,6]
[327661553,1716289849134,-614.62,0.00033094,6]
[327661554,1716289849144,-15450.63,0.00033094,6]
[327661555,1716289849158,-500.0,0.00033094,6]
[327661556,1716289849181,-283.97,0.00033094,6]
[327661557,1716289849205,-572.38,0.00033094,6]
[327661558,1716289849216,-261.73,0.00033094,6]
[327661559,1716289849230,-2346.12,0.00033094,6]
[327661560,1716289849239,-500.0,0.00033094,6]
[327661561,1716289849249,-500.0,0.00033094,6]
[327661562,1716289849259,-500.0,0.00033094,6]
[327661563,1716289849270,-1704.17,0.00033094,6]
[327661564,1716289849279,-456.62,0.00033094,6]
[327661565,1716289849289,-404.13,0.00033094,6]
[327661566,1716289849299,-500.0,0.00033095,6]
[327661567,1716289849309,-500.0,0.00033095,6]
[327661568,1716289849319,-528.81,0.00033095,6]
[327661569,1716289849328,-500.0,0.00033095,6]
[327661570,1716289849337,-663.21,0.00033095,6]
[327661571,1716289849346,-972.54,0.00033095,6]
[327661572,1716289849356,-500.0,0.00033095,6]
[327661573,1716289849366,-500.0,0.00033095,6]
[327661574,1716289849375,-967.88,0.00033095,6]
[327661575,1716289849385,-903.07,0.00033095,6]
[327661576,1716289849397,-500.0,0.00033095,6]
[327661577,1716289849406,-1383.08,0.00033095,6]
[327661578,1716289849416,-545.05,0.00033095,6]
[327661579,1716289849425,-696.29,0.00033095,6]
[327661580,1716289849435,-500.0,0.00033095,6]
[327661581,1716289849444,-613.99,0.00033095,6]
[327661582,1716289849453,-500.0,0.00033095,6]
[327661583,1716289849462,-500.0,0.00033095,6]
[327661584,1716289849471,-812.36,0.00033095,6]
[327661585,1716289849481,-500.0,0.00033095,6]
[327661586,1716289849490,-753.59,0.00033095,6]
[327661587,1716289849500,-571.3,0.00033095,6]
[327661588,1716289849509,-502.16,0.00033095,6]
[327661589,1716289849519,-894.83,0.00033095,6]
[327661590,1716289849529,-517.54,0.00033095,6]
[327661591,1716289849538,-530.75,0.00033095,6]
[327661592,1716289849548,-500.0,0.00033095,6]
[327661593,1716289849556,-356.62669294,0.00033095,6]
[327661594,1716289849565,-1389.48,0.00033095,6]
[327661595,1716289849575,-500.0,0.00033095,6]
[327661596,1716289849584,-813.39,0.00033095,6]
[327661597,1716289849594,-500.0,0.00033095,6]
[327661598,1716289849603,-784.97,0.00033095,6]
[327661599,1716289849612,-1280.36,0.00033095,6]
[327661600,1716289849622,-507.36,0.00033095,6]
[327661601,1716289849631,-1205.59,0.00033095,6]
[327661602,1716289849642,-500.0,0.00033095,6]
[327661603,1716289849652,-877.95,0.00033095,6]
[327661604,1716289849662,-500.0,0.00033095,6]
[327661605,1716289849672,-949.04,0.00033095,6]
[327661606,1716289849681,-500.0,0.00033095,6]
[327661607,1716289849691,-500.0,0.00033095,6]
[327661608,1716289849700,-936.11,0.00033095,6]
[327661609,1716289849710,-752.84,0.00033095,6]
[327661610,1716289849720,-960.8,0.00033095,6]
[327661611,1716289849729,-500.0,0.00033095,6]
[327661612,1716289849739,-1040.62,0.00033095,6]
[327661613,1716289849748,-500.0,0.00033095,6]
[327661614,1716289849758,-892.76,0.00033095,6]
[327661615,1716289849767,-500.0,0.00033095,6]
[327661616,1716289849777,-832.7,0.00033095,6]
[327661617,1716289849786,-1407.11,0.00033095,6]
[327661618,1716289849796,-872.03,0.00033095,6]
[327661619,1716289849806,-1000.97,0.00033095,6]
[327661620,1716289849816,-500.0,0.00033095,6]
[327661621,1716289849826,-500.0,0.00033095,6]
[327661622,1716289849835,-951.8,0.00033095,6]
[327661623,1716289849845,-346.12,0.00033095,6]
[327661624,1716289849854,-1511.43,0.00033095,6]
[327661625,1716289849864,-500.0,0.00033095,6]
[327661626,1716289849873,-616.33,0.00033095,6]
[327661627,1716289849883,-1039.74,0.00033095,6]
[327661628,1716289849893,-770.72,0.00033095,6]
[327661629,1716289849901,-864.44,0.00033095,6]
[327661630,1716289849911,-500.0,0.00033095,6]
[327661631,1716289849920,-992.16,0.00033095,6]
[327661632,1716289849930,-653.87,0.00033095,6]
[327661633,1716289849939,-500.0,0.00033095,6]
[327661634,1716289849949,-925.7,0.00033095,6]
[327661635,1716289849958,-500.0,0.00033095,6]
[327661636,1716289849968,-500.0,0.00033095,6]
[327661637,1716289849977,-500.0,0.00033095,6]
[327661638,1716289849986,-1958.77,0.00033095,6]
[327661639,1716289849996,-500.0,0.00033095,6]
[327661640,1716289850005,-1401.13,0.00033095,6]
[327661641,1716289850014,-500.0,0.00033095,6]
[327661642,1716289850023,-1181.49,0.00033095,6]
[327661643,1716289850033,-2383.33,0.00033095,6]
[327661644,1716289850043,-500.0,0.00033095,6]
[327661645,1716289850053,-782.67,0.00033095,6]
[327661646,1716289850062,-1181.5,0.00033095,6]
[327661647,1716289850072,-912.52,0.00033095,6]
[327661648,1716289850082,-985.39,0.00033095,6]
[327661649,1716289850091,-1922.42,0.00033095,6]
[327661650,1716289850101,-1591.94,0.00033095,6]
[327661651,1716289850110,-500.0,0.00033095,6]
[327661652,1716289850120,-1316.31,0.00033095,6]
[327661653,1716289850129,-1460.32,0.00033095,6]
[327661654,1716289850139,-500.0,0.00033095,6]
[327661655,1716289850149,-1478.87,0.00033095,6]
[327661656,1716289850159,-1704.84,0.00033095,6]
[327661657,1716289850168,-594.8,0.00033095,6]
[327661658,1716289850178,-554.86,0.00033095,6]
[327661659,1716289850187,-500.0,0.00033095,6]
[327661660,1716289850196,-500.0,0.00033095,6]
[327661661,1716289850206,-1209.04,0.00033095,6]
[327661662,1716289850216,-500.0,0.00033095,6]
[327661663,1716289850226,-565.32,0.00033095,6]
[327661664,1716289850237,-1188.87,0.00033095,6]
[327661665,1716289850247,-500.0,0.00033095,6]
[327661666,1716289850256,-5987.89,0.00033095,6]
[327661667,1716289850266,-2098.53,0.00033095,6]
[327661668,1716289850276,-1426.35,0.00033095,6]
[327661669,1716289850285,-500.0,0.00033095,6]
[327661670,1716289850295,-500.0,0.00033095,6]
[327661671,1716289850306,-909.1,0.00033095,6]
[327661672,1716289850316,-2119.96,0.00033095,6]
[327661673,1716289850325,-549.34,0.00033095,6]
[327661674,1716289850334,-500.0,0.00033095,6]
[327661675,1716289850344,-3928.51,0.00033095,6]
[327661676,1716289850353,-500.0,0.00033095,6]
[327661677,1716289850363,-500.0,0.00033095,6]
[327661678,1716289850372,-1303.65,0.00033095,6]
[327661679,1716289850382,-3336.61,0.00033095,6]
[327661680,1716289850392,-752.01,0.00033095,6]
[327661681,1716289850402,-500.0,0.00033095,6]
[327661682,1716289850412,-500.0,0.00033095,6]
[327661683,1716289850421,-572.12,0.00033095,6]
[327661684,1716289850431,-1584.81,0.00033095,6]
[327661685,1716289850440,-1840.98,0.00033095,6]
[327661686,1716289850450,-500.0,0.00033095,6]
[327661687,1716289850460,-500.0,0.00033095,6]
[327661688,1716289850470,-1264.92,0.00033095,6]
[327661689,1716289850479,-1045.68,0.00033095,6]
[327661690,1716289850488,-644.74,0.00033095,6]
[327661691,1716289850498,-500.0,0.00033095,6]
[327661692,1716289850508,-1944.59,0.00033095,6]
[327661693,1716289850518,-2427.75,0.00033095,6]
[327661694,1716289850527,-271.53,0.00033095,6]
[327661695,1716289850537,-12996.96,0.00033095,6]
[327661696,1716289850547,-518.74,0.00033095,6]
[327661697,1716289850557,-500.0,0.00033095,6]
[327661698,1716289850568,-34458.31,0.00033095,6]
[327661699,1716289850577,-2715.62,0.00033095,6]
[327661700,1716289850587,-500.0,0.00033095,6]
[327661701,1716289850597,-500.0,0.00033095,6]
[327661702,1716289850606,-1458.25,0.00033095,6]
[327661703,1716289850616,-1759.69,0.00033095,6]
[327661704,1716289850625,-500.0,0.00033095,6]
[327661705,1716289850635,-8935.11,0.00033095,6]
[327661706,1716289850645,-759.67,0.00033095,6]
[327661707,1716289850655,-500.0,0.00033095,6]
[327661708,1716289850666,-11902.44,0.00033095,6]
[327661709,1716289850675,-2909.49,0.00033095,6]
[327661710,1716289850685,-500.0,0.00033095,6]
[327661711,1716289850694,-319.04,0.00033095,6]
[327661712,1716289850704,-1053.36,0.00033095,6]
[327661713,1716289850714,-500.0,0.00033095,6]
[327661714,1716289850724,-1469.45,0.00033095,6]
[327661715,1716289850733,-500.0,0.00033095,6]
[327661716,1716289850743,-1646.27,0.00033095,6]
[327661717,1716289850752,-523.61,0.00033095,6]
[327661718,1716289850761,-5236.06,0.00033095,6]
[327661719,1716289850771,-435.99,0.00033095,6]
[327661720,1716289850780,-500.0,0.00033095,6]
[327661721,1716289850790,-3458.07,0.00033095,6]
[327661722,1716289850799,-500.0,0.00033095,6]
[327661723,1716289850810,-500.0,0.00033095,6]
[327661724,1716289850819,-1682.51,0.00033095,6]
[327661725,1716289850828,-500.0,0.00033095,6]
[327661726,1716289850837,-1448.31,0.00033095,6]
[327661727,1716289850847,-500.0,0.00033095,6]
[327661728,1716289850856,-3733.56,0.00033095,6]
[327661729,1716289850865,-1889.33,0.00033095,6]
[327661730,1716289850874,-3233.79,0.00033095,6]
[327661731,1716289850884,-1773.66,0.00033095,6]
[327661732,1716289850893,-871.53,0.00033095,6]
[327661733,1716289850902,-1554.05,0.00033095,6]
[327661734,1716289850912,-2474.37,0.00033095,6]
[327661735,1716289850921,-500.0,0.00033095,6]
[327661736,1716289850930,-492.8,0.00033095,6]
[327661737,1716289850939,-3109.23,0.00033095,6]
[327661738,1716289850948,-500.0,0.00033095,6]
[327661739,1716289850957,-2303.27,0.00033095,6]
[327661740,1716289850967,-500.0,0.00033095,6]
[327661741,1716289850976,-500.0,0.00033095,6]
[327661742,1716289850985,-1792.27,0.00033095,6]
[327661743,1716289850994,-1168.19,0.00033095,6]
[327661744,1716289851004,-2583.22,0.00033095,6]
[327661745,1716289851013,-1947.66,0.00033095,6]
[327661746,1716289851022,-4182.64,0.00033095,6]
[327661747,1716289851031,-3915.85,0.00033095,6]
[327661748,1716289851040,-500.0,0.00033095,6]
[327661749,1716289851050,-827.2,0.00033095,6]
[327661750,1716289851060,-3737.13,0.00033095,6]
[327661751,1716289851069,-2723.66,0.00033095,6]
[327661752,1716289851078,-6711.27,0.00033095,6]
[327661753,1716289851087,-3735.37,0.00033095,6]
[327661754,1716289851097,-500.0,0.00033095,6]
[327661755,1716289851106,-500.0,0.00033095,6]
[327661756,1716289851116,-543.14,0.00033095,6]
[327661757,1716289851125,-500.0,0.00033095,6]
[327661758,1716289851135,-1165.62,0.00033095,6]
[327661759,1716289851145,-500.0,0.00033095,6]
[327661760,1716289851154,-1174.0,0.00033095,6]
[327661761,1716289851163,-500.0,0.00033095,6]
[327661762,1716289851173,-6138.86,0.00033095,6]
[327661763,1716289851182,-1390.83,0.00033095,6]
[327661764,1716289851191,-521.0,0.00033095,6]
[327661765,1716289851201,-3098.28,0.00033095,6]
[327661766,1716289851210,-1339.14,0.00033095,6]
[327661767,1716289851222,-684.1,0.00033095,6]
[327661768,1716289851233,-4278.7,0.00033095,6]
[327661769,1716289851242,-2708.47,0.00033095,6]
[327661770,1716289851252,-3233.25,0.00033095,6]
[327661771,1716289851263,-708.58,0.00033095,6]
[327661772,1716289851272,-913.19,0.00033095,6]
[327661773,1716289851282,-570.05,0.00033095,6]
[327661774,1716289851291,-5343.54,0.00033095,6]
[327661775,1716289851302,-2579.9,0.00033095,6]
[327661776,1716289851312,-500.0,0.00033095,6]
[327661777,1716289851322,-854.27,0.00033095,6]
[327661778,1716289851331,-1423.94,0.00033095,6]
[327661779,1716289851341,-3728.95,0.00033095,6]
[327661780,1716289851350,-3353.27,0.00033095,6]
[327661781,1716289851359,-500.0,0.00033095,6]
[327661782,1716289851369,-500.0,0.00033095,6]
[327661783,1716289851379,-2867.3,0.00033095,6]
[327661784,1716289851388,-1534.21,0.00033095,6]
[327661785,1716289851398,-5742.01,0.00033095,6]
[327661786,1716289851407,-278.07,0.00033095,6]
[327661787,1716289851416,-4374.84,0.00033095,6]
[327661788,1716289851426,-197.33,0.00033095,6]
[327661789,1716289851436,-2490.56,0.00033095,6]
[327661790,1716289851447,-500.0,0.00033095,6]
[327661791,1716289851459,-908.16,0.00033095,6]
[327661792,1716289851468,-6975.59,0.00033095,6]
[327661793,1716289851477,-500.0,0.00033095,6]
[327661794,1716289851488,-2999.45,0.00033095,6]
[327661795,1716289851498,-500.0,0.00033095,6]
[327661796,1716289851508,-500.0,0.00033095,6]
[327661797,1716289851517,-1197.99,0.00033095,6]
[327661798,1716289851527,-746.39,0.00033095,6]
[327661799,1716289851537,-4000.0,0.00033095,6]
[327661800,1716289851546,-500.0,0.00033095,6]
[327661801,1716289851555,-12407.4,0.00033095,6]
[327661802,1716289851565,-500.0,0.00033095,6]
[327661803,1716289851574,-42829.36,0.00033095,6]
[327661804,1716289851583,-2550.48,0.00033095,6]
[327661805,1716289851593,-2269.27,0.00033095,6]
[327661806,1716289851603,-1029.12,0.00033095,6]
[327661807,1716289851612,-218.92829139,0.00033105,5]
[327661808,1716289851621,-1327.12126088,0.00033115,5]
[327661809,1716289851631,-500.0,0.00033203,6]
[327661810,1716289851640,-500.0,0.00033203,6]
[327661811,1716289851650,-500.0,0.00033203,6]
[327661812,1716289851659,-500.0,0.00033203,6]
[327661813,1716289851669,-750.84,0.00033203,6]
[327661814,1716289851678,-500.0,0.00033203,6]
[327661815,1716289851688,-500.0,0.00033203,6]
[327661816,1716289851698,-500.0,0.00033203,6]
[327661817,1716289851707,-540.25,0.00033203,6]
[327661818,1716289851716,-500.0,0.00033203,6]
[327661819,1716289851725,-500.0,0.00033203,6]
[327661820,1716289851734,-773.06,0.00033203,6]
[327661821,1716289851744,-290.43,0.00033203,6]
[327661822,1716289851753,-333.09,0.00033203,6]
[327661823,1716289851762,-647.52,0.00033203,6]
[327661824,1716289851771,-545.43,0.00033203,6]
[327661825,1716289851780,-500.0,0.00033203,6]
[327661826,1716289851790,-551.28,0.00033203,6]
[327661827,1716289851799,-500.0,0.00033203,6]
[327661828,1716289851808,-500.0,0.00033203,6]
[327661829,1716289851817,-500.0,0.00033203,6]
[327661830,1716289851826,-500.0,0.00033203,6]
[327661831,1716289851836,-500.0,0.00033203,6]
[327661832,1716289851845,-500.0,0.00033203,6]
[327661833,1716289851854,-705.79,0.00033203,6]
[327661834,1716289851863,-500.0,0.00033203,6]
[327661835,1716289851872,-702.31,0.00033203,6]
[327661836,1716289851882,-500.0,0.00033203,6]
[327661837,1716289851891,-500.0,0.00033203,6]
[327661838,1716289851900,-500.0,0.00033203,6]
[327661839,1716289851910,-500.0,0.00033203,6]
[327661840,1716289851919,-500.0,0.00033203,6]
[327661841,1716289851928,-541.85,0.00033203,6]
[327661842,1716289851937,-500.0,0.00033203,6]
[327661843,1716289851946,-500.0,0.00033203,6]
[327661844,1716289851955,-500.0,0.00033203,6]
[327661845,1716289851964,-834.3,0.00033203,6]
[327661846,1716289851973,-500.0,0.00033203,6]
[327661847,1716289851982,-756.94,0.00033203,6]
[327661848,1716289851991,-552.05,0.00033203,6]
[327661849,1716289852001,-500.0,0.00033203,6]
[327661850,1716289852010,-967.49,0.00033203,6]
[327661851,1716289852019,-500.0,0.00033203,6]
[327661852,1716289852029,-945.95,0.00033203,6]
[327661853,1716289852039,-919.43,0.00033203,6]
[327661854,1716289852048,-500.0,0.00033203,6]
[327661855,1716289852057,-500.0,0.00033203,6]
[327661856,1716289852067,-500.0,0.00033203,6]
[327661857,1716289852076,-2149.82,0.00033203,6]
[327661858,1716289852085,-814.93,0.00033203,6]
[327661859,1716289852094,-1100.82,0.00033203,6]
[327661860,1716289852103,-500.0,0.00033203,6]
[327661861,1716289852112,-500.0,0.00033203,6]
[327661862,1716289852122,-500.0,0.00033203,6]
[327661863,1716289852131,-500.0,0.00033203,6]
[327661864,1716289852141,-662.16,0.00033203,6]
[327661865,1716289852150,-1799.93,0.00033203,6]
[327661866,1716289852159,-500.0,0.00033203,6]
[327661867,1716289852169,-500.0,0.00033203,6]
[327661868,1716289852178,-500.0,0.00033203,6]
[327661869,1716289852187,-500.0,0.00033203,6]
[327661870,1716289852196,-1405.06,0.00033203,6]
[327661871,1716289852205,-799.85,0.00033203,6]
[327661872,1716289852214,-500.0,0.00033203,6]
[327661873,1716289852224,-500.0,0.00033203,6]
[327661874,1716289852237,-745.28,0.00033203,6]
[327661875,1716289852246,-841.83,0.00033203,6]
[327661876,1716289852255,-1171.85,0.00033203,6]
[327661877,1716289852264,-1300.36,0.00033203,6]
[327661878,1716289852274,-749.7,0.00033203,6]
[327661879,1716289852283,-868.84,0.00033203,6]
[327661880,1716289852293,-950.55,0.00033203,6]
[327661881,1716289852304,-1154.49,0.00033203,6]
[327661882,1716289852313,-608.39,0.00033203,6]
[327661883,1716289852323,-500.0,0.00033203,6]
[327661884,1716289852332,-551.53,0.00033203,6]
[327661885,1716289852341,-560.82,0.00033203,6]
[327661886,1716289852351,-1111.14,0.00033203,6]
[327661887,1716289852360,-717.37,0.00033203,6]
[327661888,1716289852369,-500.0,0.00033203,6]
[327661889,1716289852378,-500.0,0.00033203,6]
[327661890,1716289852387,-549.44,0.00033203,6]
[327661891,1716289852398,-458.83471237,0.00033203,6]
[327661892,1716289852407,-767.4,0.00033203,6]
[327661893,1716289852417,-500.0,0.00033203,6]
[327661894,1716289852426,-500.0,0.00033203,6]
[327661895,1716289852435,-705.12,0.00033203,6]
[327661896,1716289852444,-623.1,0.00033203,6]
[327661897,1716289852454,-500.0,0.00033203,6]
[327661898,1716289852463,-548.97,0.00033203,6]
[327661899,1716289852472,-316.75,0.00033203,6]
[327661900,1716289852481,-447.32,0.00033203,6]
[327661901,1716289852495,-500.0,0.00033203,6]
[327661902,1716289852517,-500.0,0.00033203,6]
[327661903,1716289852533,-1704.17,0.00033203,6]
[327661904,1716289852542,-524.09,0.00033204,6]
[327661905,1716289852552,-3336.61,0.00033204,6]
[327661906,1716289852561,-2427.75,0.00033204,6]
[327661907,1716289852571,-500.0,0.00033204,6]
[327661908,1716289852688,-1884.54,0.00033204,6]
[327661909,1716289852700,-11902.44,0.00033204,6]
[327661910,1716289852710,-1646.27,0.00033204,6]
[327661911,1716289852719,-3458.07,0.00033204,6]
[327661912,1716289852728,-500.0,0.00033204,6]
[327661913,1716289852738,-3233.79,0.00033204,6]
[327661914,1716289852747,-15450.63,0.00033204,6]
[327661915,1716289852756,-2303.27,0.00033204,6]
[327661916,1716289852766,-2583.22,0.00033204,6]
[327661917,1716289852775,-6138.86,0.00033204,6]
[327661918,1716289852784,-4278.7,0.00033204,6]
[327661919,1716289852794,-2346.12,0.00033204,6]
[327661920,1716289852803,-5343.54,0.00033204,6]
[327661921,1716289852814,-500.0,0.00033204,6]
[327661922,1716289852824,-1029.12,0.00033204,6]
[327661923,1716289852833,-500.0,0.00033205,6]
[327661924,1716289852842,-500.0,0.00033205,6]
[327661925,1716289852852,-528.81,0.00033205,6]
[327661926,1716289852861,-500.0,0.00033205,6]
[327661927,1716289852871,-663.21,0.00033205,6]
[327661928,1716289852880,-972.54,0.00033205,6]
[327661929,1716289852890,-159.26,0.00033205,6]
[327661930,1716289852900,-500.0,0.00033205,6]
[327661931,1716289852909,-967.88,0.00033205,6]
[327661932,1716289852919,-903.07,0.00033205,6]
[327661933,1716289852929,-500.0,0.00033205,6]
[327661934,1716289852938,-1383.08,0.00033205,6]
[327661935,1716289852948,-545.05,0.00033205,6]
[327661936,1716289852957,-696.29,0.00033205,6]
[327661937,1716289852967,-500.0,0.00033205,6]
[327661938,1716289852976,-613.99,0.00033205,6]
[327661939,1716289852986,-500.0,0.00033205,6]
[327661940,1716289852996,-500.0,0.00033205,6]
[327661941,1716289853005,-812.36,0.00033205,6]
[327661942,1716289853015,-500.0,0.00033205,6]
[327661943,1716289853025,-753.59,0.00033205,6]
[327661944,1716289853035,-571.3,0.00033205,6]
[327661945,1716289853044,-502.16,0.00033205,6]
[327661946,1716289853054,-894.83,0.00033205,6]
[327661947,1716289853064,-517.54,0.00033205,6]
[327661948,1716289853074,-530.75,0.00033205,6]
[327661949,1716289853083,-500.0,0.00033205,6]
[327661950,1716289853092,-1389.48,0.00033205,6]
[327661951,1716289853102,-813.39,0.00033205,6]
[327661952,1716289853111,-340.78925005,0.00033205,6]
[327661953,1716289853120,-500.0,0.00033205,6]
[327661954,1716289853130,-784.97,0.00033205,6]
[327661955,1716289853140,-1280.36,0.00033205,6]
[327661956,1716289853150,-507.36,0.00033205,6]
[327661957,1716289853159,-1205.59,0.00033205,6]
[327661958,1716289853168,-500.0,0.00033205,6]
[327661959,1716289853177,-877.95,0.00033205,6]
[327661960,1716289853186,-500.0,0.00033205,6]
[327661961,1716289853196,-949.04,0.00033205,6]
[327661962,1716289853205,-500.0,0.00033205,6]
[327661963,1716289853214,-500.0,0.00033205,6]
[327661964,1716289853226,-936.11,0.00033205,6]
[327661965,1716289853237,-752.84,0.00033205,6]
[327661966,1716289853247,-960.8,0.00033205,6]
[327661967,1716289853256,-500.0,0.00033205,6]
[327661968,1716289853267,-1040.62,0.00033205,6]
[327661969,1716289853276,-500.0,0.00033205,6]
[327661970,1716289853286,-892.76,0.00033205,6]
[327661971,1716289853295,-500.0,0.00033205,6]
[327661972,1716289853305,-832.7,0.00033205,6]
[327661973,1716289853315,-1407.11,0.00033205,6]
[327661974,1716289853324,-872.03,0.00033205,6]
[327661975,1716289853333,-1000.97,0.00033205,6]